fUST/lending_fUST_20250407
["ID","MTS","AMOUNT","RATE_DAILY","PERIOD"]
[357332794,1744007496224,-500.0,0.00042191,7]
[357332795,1744007496234,-593.83702764,0.00042191,7]
[357332796,1744007496244,-500.0,0.00042191,7]
[357332797,1744007496254,-500.0,0.00042191,7]
[357332798,1744007496264,-500.0,0.00042191,7]
[357332799,1744007496273,-867.45,0.00042191,7]
[357332800,1744007496283,-537.73247597,0.00042191,7]
[357332801,1744007496304,-500.0,0.00042191,7]
[357332802,1744007496324,-500.0,0.00042191,7]
[357332803,1744007496336,-402.29601438,0.00042191,7]
[357332804,1744007496346,-500.0,0.00042191,7]
[357332805,1744007496356,-533.35,0.00042191,7]
[357332806,1744007496366,-906.27,0.00042191,7]
[357332807,1744007496375,-670.8,0.00042191,7]
[357332808,1744007496385,-517.39,0.00042191,7]
[357332809,1744007496395,-500.0,0.00042191,7]
[357332810,1744007496404,-534.6,0.00042191,7]
[357332811,1744007496414,-500.0,0.00042191,7]
[357332812,1744007496424,-1086.53,0.00042191,7]
[357332813,1744007496434,-576.65,0.00042191,7]
[357332814,1744007496443,-500.0,0.00042191,7]
[357332815,1744007496453,-500.0,0.00042191,7]
[357332816,1744007496463,-500.0,0.00042191,7]
[357332817,1744007496473,-157.53486183,0.00042191,7]
[357332818,1744007496482,-500.0,0.00042191,7]
[357332819,1744007496492,-1107.37,0.00042191,7]
[357332820,1744007496502,-1447.2,0.00042191,7]
[357332821,1744007496512,-513.43,0.00042191,7]
[357332822,1744007496522,-500.0,0.00042191,7]
[357332823,1744007496532,-566.61,0.00042191,7]
[357332824,1744007496545,-939.19,0.00042191,7]
[357332825,1744007496555,-1423.54,0.00042191,7]
[357332826,1744007496566,-2008.01,0.00042191,7]
[357332827,1744007496576,-1800.94,0.00042191,7]
[357332828,1744007496586,-901.74,0.00042191,7]
[357332829,1744007496595,-500.0,0.00042191,7]
[357332830,1744007496605,-749.66,0.00042191,7]
[357332831,1744007496615,-500.0,0.00042191,7]
[357332832,1744007496625,-500.0,0.00042191,7]
[357332833,1744007496634,-697.53,0.00042191,7]
[357332834,1744007496644,-500.0,0.00042191,7]
[357332835,1744007496653,-934.77,0.00042191,7]
[357332836,1744007496663,-500.0,0.00042191,7]
[357332837,1744007496677,-1984.09,0.00042191,7]
[357332838,1744007496686,-946.46,0.00042191,7]
[357332839,1744007496695,-935.62,0.00042191,7]
[357332840,1744007496705,-307.59088562,0.00042191,7]
[357332841,1744007496716,-500.0,0.00042191,7]
[357332842,1744007496725,-515.1,0.00042191,7]
[357332843,1744007496735,-512.76,0.00042191,7]
[357332844,1744007496745,-690.44,0.00042191,7]
[357332845,1744007496755,-838.21,0.00042191,7]
[357332846,1744007496765,-847.87,0.00042191,7]
[357332847,1744007496775,-1589.02,0.00042191,7]
[357332848,1744007496784,-269.60417872,0.00042191,7]
[357332849,1744007496795,-500.0,0.00042191,7]
[357332850,1744007496805,-500.0,0.00042191,7]
[357332851,1744007496815,-1158.58,0.00042191,7]
[357332852,1744007496825,-952.13,0.00042191,7]
[357332853,1744007496835,-573.45,0.00042191,7]
[357332854,1744007496844,-500.0,0.00042191,7]
[357332855,1744007496854,-1057.47,0.00042191,7]
[357332856,1744007496863,-500.0,0.00042191,7]
[357332857,1744007496874,-694.43,0.00042191,7]
[357332858,1744007496883,-500.0,0.00042191,7]
[357332859,1744007496893,-571.11,0.00042191,7]
[357332860,1744007496902,-500.0,0.00042191,7]
[357332861,1744007496912,-528.03,0.00042191,7]
[357332862,1744007496922,-500.0,0.00042191,7]
[357332863,1744007496931,-613.99,0.00042191,7]
[357332864,1744007496942,-1665.49,0.00042191,7]
[357332865,1744007496961,-928.88,0.00042191,7]
[357332866,1744007496974,-772.18,0.00042191,7]
[357332867,1744007496985,-500.0,0.00042191,7]
[357332868,1744007496996,-500.0,0.00042191,7]
[357332869,1744007497006,-500.0,0.00042191,7]
[357332870,1744007497016,-500.0,0.00042191,7]
[357332871,1744007497027,-1501.09,0.00042191,2]
[357332872,1744007497036,-586.05,0.00042191,7]
[357332873,1744007497050,-722.91,0.00042191,7]
[357332874,1744007497060,-1033.34,0.00042191,7]
[357332875,1744007497071,-522.77,0.00042191,7]
[357332876,1744007497081,-500.0,0.00042191,7]
[357332877,1744007497091,-571.83,0.00042191,7]
[357332878,1744007497102,-523.84,0.00042191,7]
[357332879,1744007497112,-500.0,0.00042191,7]
[357332880,1744007497122,-500.0,0.00042191,7]
[357332881,1744007497133,-500.0,0.00042191,7]
[357332882,1744007497143,-833.69,0.00042191,7]
[357332883,1744007497153,-2025.36,0.00042191,7]
[357332884,1744007497163,-1592.74,0.00042191,7]
[357332885,1744007497173,-603.67,0.00042191,7]
[357332886,1744007497182,-500.0,0.00042191,7]
[357332887,1744007497192,-2054.09,0.00042191,7]
[357332888,1744007497202,-4027.87,0.00042191,7]
[357332889,1744007497212,-1703.64,0.00042191,7]
[357332890,1744007497222,-1206.14,0.00042191,7]
[357332891,1744007497232,-2750.5,0.00042191,7]
[357332892,1744007497241,-5383.4,0.00042191,7]
[357332893,1744007497252,-1044.92,0.00042191,7]
[357332894,1744007497262,-752.29,0.00042191,7]
[357332895,1744007497271,-556.96,0.00042191,7]
[357332896,1744007497281,-16324.2,0.00042191,7]
[357332897,1744007497291,-9467.87,0.00042191,7]
[357332898,1744007497304,-704.24,0.00042191,7]
[357332899,1744007497314,-5668.81,0.00042191,7]
[357332900,1744007497323,-2032.66,0.00042191,7]
[357332901,1744007497333,-7826.43,0.00042191,7]
[357332902,1744007497343,-627.1,0.00042191,7]
[357332903,1744007497353,-1951.0,0.00042191,7]
[357332904,1744007497363,-1564.82,0.00042191,7]
[357332905,1744007497372,-720.69,0.00042191,7]
[357332906,1744007497382,-603.99,0.00042191,7]
[357332907,1744007497392,-500.0,0.00042191,7]
[357332908,1744007497401,-1960.56,0.00042191,7]
[357332909,1744007497411,-1748.88,0.00042191,7]
[357332910,1744007497420,-500.0,0.00042191,7]
[357332911,1744007497430,-2029.77,0.00042191,7]
[357332912,1744007497439,-1368.39,0.00042191,2]
[357332913,1744007497449,-588.58,0.00042191,7]
[357332914,1744007497457,-601.11,0.00042191,7]
[357332915,1744007497467,-1802.77,0.00042191,7]
[357332916,1744007497476,-638.37,0.00042191,7]
[357332917,1744007497486,-3642.09,0.00042191,7]
[357332918,1744007497497,-1347.37,0.00042191,7]
[357332919,1744007497506,-1391.95,0.00042191,7]
[357332920,1744007497517,-500.0,0.00042191,7]
[357332921,1744007497526,-2126.62,0.00042191,7]
[357332922,1744007497536,-796.84,0.00042191,7]
[357332923,1744007497548,-617.31,0.00042191,7]
[357332924,1744007497558,-5186.58,0.00042191,7]
[357332925,1744007497568,-1111.1,0.00042191,7]
[357332926,1744007497579,-1058.19,0.00042191,7]
[357332927,1744007497589,-7684.6,0.00042191,7]
[357332928,1744007497600,-781.69,0.00042191,7]
[357332929,1744007497610,-503.58,0.00042191,7]
[357332930,1744007497620,-500.0,0.00042191,7]
[357332931,1744007497630,-526.85,0.00042191,7]
[357332932,1744007497640,-500.0,0.00042191,7]
[357332933,1744007497650,-6861.13,0.00042191,7]
[357332934,1744007497660,-500.0,0.00042191,7]
[357332935,1744007497673,-500.0,0.00042191,7]
[357332936,1744007497683,-7716.74,0.00042191,7]
[357332937,1744007497693,-2269.56,0.00042191,7]
[357332938,1744007497703,-4907.12,0.00042191,7]
[357332939,1744007497714,-504.85,0.00042191,7]
[357332940,1744007497723,-542.23,0.00042191,7]
[357332941,1744007497733,-2640.34,0.00042191,7]
[357332942,1744007497744,-2111.69,0.00042191,7]
[357332943,1744007497755,-500.0,0.00042191,7]
[357332944,1744007497766,-2900.21,0.00042191,7]
[357332945,1744007497776,-754.1,0.00042191,7]
[357332946,1744007497786,-582.6,0.00042191,7]
[357332947,1744007497800,-726.72,0.00042191,7]
[357332948,1744007497811,-904.26,0.00042191,7]
[357332949,1744007497822,-500.0,0.00042191,7]
[357332950,1744007497832,-564.13,0.00042191,7]
[357332951,1744007497842,-853.72,0.00042191,7]
[357332952,1744007497852,-17236.37,0.00042191,7]
[357332953,1744007497863,-1442.71,0.00042191,7]
[357332954,1744007497873,-520.98,0.00042191,7]
[357332955,1744007497884,-3459.37,0.00042191,7]
[357332956,1744007497894,-500.0,0.00042191,7]
[357332957,1744007497905,-1195.35,0.00042191,7]
[357332958,1744007497915,-500.0,0.00042191,7]
[357332959,1744007497925,-739.23,0.00042191,7]
[357332960,1744007497935,-501.32660094,0.00042191,7]
[357332961,1744007497945,-931.74,0.00042191,7]
[357332962,1744007497956,-1037.89,0.00042191,7]
[357332963,1744007497966,-500.0,0.000422,59]
[357332964,1744007497976,-211.49636895,0.00042219,120]
[357332965,1744007497986,-750.0,0.0004226,2]
[357332966,1744007497996,-500.0,0.000423,59]
[357332967,1744007498006,-500.0,0.000424,60]
[357332968,1744007498016,-211.49636895,0.00042411,120]
[357332969,1744007498025,-500.0,0.00042465,7]
[357332970,1744007498035,-812.34,0.00042465,7]
[357332971,1744007498054,-500.0,0.00042465,7]
[357332972,1744007498065,-729.06,0.00042465,7]
[357332973,1744007498076,-500.0,0.00042465,7]
[357332974,1744007498086,-500.0,0.00042465,7]
[357332975,1744007498097,-736.69,0.00042465,7]
[357332976,1744007498108,-500.0,0.00042465,7]
[357332977,1744007498118,-500.0,0.00042465,7]
[357332978,1744007498128,-500.0,0.00042465,7]
[357332979,1744007498140,-500.0,0.00042465,7]
[357332980,1744007498150,-500.0,0.00042465,7]
[357332981,1744007498161,-867.45,0.00042465,7]
[357332982,1744007498172,-500.0,0.00042465,7]
[357332983,1744007498182,-500.0,0.00042465,7]
[357332984,1744007498193,-500.0,0.00042465,7]
[357332985,1744007498203,-533.35,0.00042465,7]
[357332986,1744007498379,-906.27,0.00042465,7]
[357332987,1744007498389,-670.8,0.00042465,7]
[357332988,1744007498399,-517.39,0.00042465,7]
[357332989,1744007498409,-500.0,0.00042465,7]
[357332990,1744007498419,-534.6,0.00042465,7]
[357332991,1744007498428,-500.0,0.00042465,7]
[357332992,1744007498438,-1086.53,0.00042465,7]
[357332993,1744007498448,-576.65,0.00042465,7]
[357332994,1744007498459,-500.0,0.00042465,7]
[357332995,1744007498469,-500.0,0.00042465,7]
[357332996,1744007498479,-500.0,0.00042465,7]
[357332997,1744007498488,-500.0,0.00042465,7]
[357332998,1744007498498,-1107.37,0.00042465,7]
[357332999,1744007498508,-1447.2,0.00042465,7]
[357333000,1744007498518,-513.43,0.00042465,7]
[357333001,1744007498528,-500.0,0.00042465,7]
[357333002,1744007498538,-566.61,0.00042465,7]
[357333003,1744007498551,-939.19,0.00042465,7]
[357333004,1744007498561,-1423.54,0.00042465,7]
[357333005,1744007498571,-2008.01,0.00042465,7]
[357333006,1744007498580,-1800.94,0.00042465,7]
[357333007,1744007498590,-901.74,0.00042465,7]
[357333008,1744007498600,-500.0,0.00042465,7]
[357333009,1744007498609,-749.66,0.00042465,7]
[357333010,1744007498619,-500.0,0.00042465,7]
[357333011,1744007498629,-500.0,0.00042465,7]
[357333012,1744007498638,-697.53,0.00042465,7]
[357333013,1744007498648,-500.0,0.00042465,7]
[357333014,1744007498658,-934.77,0.00042465,7]
[357333015,1744007498669,-500.0,0.00042465,7]
[357333016,1744007498680,-1984.09,0.00042465,7]
[357333017,1744007498690,-946.46,0.00042465,7]
[357333018,1744007498700,-935.62,0.00042465,7]
[357333019,1744007498710,-500.0,0.00042465,7]
[357333020,1744007498720,-515.1,0.00042465,7]
[357333021,1744007498730,-512.76,0.00042465,7]
[357333022,1744007498739,-690.44,0.00042465,7]
[357333023,1744007498751,-838.21,0.00042465,7]
[357333024,1744007498760,-847.87,0.00042465,7]
[357333025,1744007498770,-1589.02,0.00042465,7]
[357333026,1744007498780,-500.0,0.00042465,7]
[357333027,1744007498790,-500.0,0.00042465,7]
[357333028,1744007498804,-1158.58,0.00042465,7]
[357333029,1744007498813,-952.13,0.00042465,7]
[357333030,1744007498823,-573.45,0.00042465,7]
[357333031,1744007498833,-500.0,0.00042465,7]
[357333032,1744007498844,-1057.47,0.00042465,7]
[357333033,1744007498854,-500.0,0.00042465,7]
[357333034,1744007498864,-694.43,0.00042465,7]
[357333035,1744007498874,-153.30193028,0.00042465,7]
[357333036,1744007498884,-571.11,0.00042465,7]
[357333037,1744007498894,-500.0,0.00042465,7]
[357333038,1744007498904,-528.03,0.00042465,7]
[357333039,1744007498914,-500.0,0.00042465,7]
[357333040,1744007498924,-613.99,0.00042465,7]
[357333041,1744007498934,-1665.49,0.00042465,7]
[357333042,1744007498943,-928.88,0.00042465,7]
[357333043,1744007498954,-772.18,0.00042465,7]
[357333044,1744007498964,-500.0,0.00042465,7]
[357333045,1744007498974,-500.0,0.00042465,7]
[357333046,1744007498984,-500.0,0.00042465,7]
[357333047,1744007498994,-500.0,0.00042465,7]
[357333048,1744007499004,-1501.09,0.00042465,2]
[357333049,1744007499014,-586.05,0.00042465,7]
[357333050,1744007499024,-722.91,0.00042465,7]
[357333051,1744007499034,-1033.34,0.00042465,7]
[357333052,1744007499048,-522.77,0.00042465,7]
[357333053,1744007499058,-500.0,0.00042465,7]
[357333054,1744007499068,-571.83,0.00042465,7]
[357333055,1744007499078,-523.84,0.00042465,7]
[357333056,1744007499088,-500.0,0.00042465,7]
[357333057,1744007499098,-500.0,0.00042465,7]
[357333058,1744007499108,-500.0,0.00042465,7]
[357333059,1744007499118,-833.69,0.00042465,7]
[357333060,1744007499127,-2025.36,0.00042465,7]
[357333061,1744007499137,-1592.74,0.00042465,7]
[357333062,1744007499147,-603.67,0.00042465,7]
[357333063,1744007499156,-500.0,0.00042465,7]
[357333064,1744007499166,-2054.09,0.00042465,7]
[357333065,1744007499175,-4027.87,0.00042465,7]
[357333066,1744007499185,-1703.64,0.00042465,7]
[357333067,1744007499195,-1206.14,0.00042465,7]
[357333068,1744007499204,-2750.5,0.00042465,7]
[357333069,1744007499215,-5383.4,0.00042465,7]
[357333070,1744007499225,-1044.92,0.00042465,7]
[357333071,1744007499234,-752.29,0.00042465,7]
[357333072,1744007499244,-556.96,0.00042465,7]
[357333073,1744007499254,-16324.2,0.00042465,7]
[357333074,1744007499263,-9467.87,0.00042465,7]
[357333075,1744007499273,-704.24,0.00042465,7]
[357333076,1744007499283,-5668.81,0.00042465,7]
[357333077,1744007499293,-2032.66,0.00042465,7]
[357333078,1744007499306,-7826.43,0.00042465,7]
[357333079,1744007499316,-627.1,0.00042465,7]
[357333080,1744007499326,-1951.0,0.00042465,7]
[357333081,1744007499335,-1564.82,0.00042465,7]
[357333082,1744007499345,-720.69,0.00042465,7]
[357333083,1744007499354,-603.99,0.00042465,7]
[357333084,1744007499364,-500.0,0.00042465,7]
[357333085,1744007499374,-1960.56,0.00042465,7]
[357333086,1744007499384,-1748.88,0.00042465,7]
[357333087,1744007499402,-600.76463968,0.00042465,7]
[357333088,1744007499415,-2029.77,0.00042465,7]
[357333089,1744007499425,-1368.39,0.00042465,2]
[357333090,1744007499436,-588.58,0.00042465,7]
[357333091,1744007499446,-601.11,0.00042465,7]
[357333092,1744007499455,-1802.77,0.00042465,7]
[357333093,1744007499466,-638.37,0.00042465,7]
[357333094,1744007499475,-3642.09,0.00042465,7]
[357333095,1744007499486,-1347.37,0.00042465,7]
[357333096,1744007499496,-1391.95,0.00042465,7]
[357333097,1744007499506,-500.0,0.00042465,7]
[357333098,1744007499516,-2126.62,0.00042465,7]
[357333099,1744007499527,-796.84,0.00042465,7]
[357333100,1744007499537,-617.31,0.00042465,7]
[357333101,1744007499551,-5186.58,0.00042465,7]
[357333102,1744007499561,-1111.1,0.00042465,7]
[357333103,1744007499571,-1058.19,0.00042465,7]
[357333104,1744007499582,-7684.6,0.00042465,7]
[357333105,1744007499593,-781.69,0.00042465,7]
[357333106,1744007499603,-503.58,0.00042465,7]
[357333107,1744007499614,-500.0,0.00042465,7]
[357333108,1744007499626,-526.85,0.00042465,7]
[357333109,1744007499637,-500.0,0.00042465,7]
[357333110,1744007499647,-6861.13,0.00042465,7]
[357333111,1744007499658,-546.52391162,0.00042465,7]
[357333112,1744007499673,-500.0,0.00042465,7]
[357333113,1744007499683,-7716.74,0.00042465,7]
[357333114,1744007499694,-2269.56,0.00042465,7]
[357333115,1744007499705,-4907.12,0.00042465,7]
[357333116,1744007499716,-504.85,0.00042465,7]
[357333117,1744007499726,-542.23,0.00042465,7]
[357333118,1744007499737,-2640.34,0.00042465,7]
[357333119,1744007499749,-2111.69,0.00042465,7]
[357333120,1744007499759,-500.0,0.00042465,7]
[357333121,1744007499770,-2900.21,0.00042465,7]
[357333122,1744007499780,-754.1,0.00042465,7]
[357333123,1744007499791,-582.6,0.00042465,7]
[357333124,1744007499808,-726.72,0.00042465,7]
[357333125,1744007499818,-904.26,0.00042465,7]
[357333126,1744007499829,-500.0,0.00042465,7]
[357333127,1744007499839,-564.13,0.00042465,7]
[357333128,1744007499850,-853.72,0.00042465,7]
[357333129,1744007499861,-17236.37,0.00042465,7]
[357333130,1744007499872,-1442.71,0.00042465,7]
[357333131,1744007499882,-520.98,0.00042465,7]
[357333132,1744007499892,-3459.37,0.00042465,7]
[357333133,1744007499904,-500.0,0.00042465,7]
[357333134,1744007499915,-1195.35,0.00042465,7]
[357333135,1744007499925,-500.0,0.00042465,7]
[357333136,1744007499935,-739.23,0.00042465,7]
[357333137,1744007499946,-931.74,0.00042465,7]
[357333138,1744007499956,-1037.89,0.00042465,7]
[357333139,1744007499967,-500.0,0.00042466,7]
[357333140,1744007499978,-500.0,0.00042466,7]
[357333141,1744007499989,-500.0,0.00042466,7]
[357333142,1744007499999,-600.0,0.00042471,2]
[357333143,1744007500010,-500.0,0.000425,61]
[357333144,1744007500020,-1208.75877963,0.0004259,17]
[357333145,1744007500030,-153.3,0.000426,120]
[357333146,1744007500042,-500.0,0.000426,62]
[357333147,1744007500056,-211.49636895,0.00042603,120]
[357333148,1744007500066,-524.0,0.0004267,120]
[357333149,1744007500077,-150.5,0.0004267,30]
[357333150,1744007500087,-524.0,0.0004268,120]
[357333151,1744007500097,-150.5,0.0004268,30]
[357333152,1744007500107,-524.0,0.0004269,120]
[357333153,1744007500117,-150.5,0.0004269,30]
[357333154,1744007500128,-500.0,0.000427,63]
[357333155,1744007500138,-538.76,0.00042721,2]
[357333156,1744007500149,-401.0,0.00042721,2]
[357333157,1744007500159,-500.0,0.00042739,7]
[357333158,1744007500169,-812.34,0.00042739,7]
[357333159,1744007500179,-500.0,0.00042739,7]
[357333160,1744007500190,-729.06,0.00042739,7]
[357333161,1744007500200,-500.0,0.00042739,7]
[357333162,1744007500211,-500.0,0.00042739,7]
[357333163,1744007500221,-736.69,0.00042739,7]
[357333164,1744007500231,-500.0,0.00042739,7]
[357333165,1744007500241,-272.17183319,0.00042739,7]
[357333166,1744007500252,-500.0,0.00042739,7]
[357333167,1744007500263,-500.0,0.00042739,7]
[357333168,1744007500273,-500.0,0.00042739,7]
[357333169,1744007500283,-867.45,0.00042739,7]
[357333170,1744007500297,-500.0,0.00042739,7]
[357333171,1744007500307,-500.0,0.00042739,7]
[357333172,1744007500317,-500.0,0.00042739,7]
[357333173,1744007500327,-533.35,0.00042739,7]
[357333174,1744007500337,-906.27,0.00042739,7]
[357333175,1744007500347,-670.8,0.00042739,7]
[357333176,1744007500357,-517.39,0.00042739,7]
[357333177,1744007500367,-500.0,0.00042739,7]
[357333178,1744007500378,-534.6,0.00042739,7]
[357333179,1744007500388,-500.0,0.00042739,7]
[357333180,1744007500398,-1086.53,0.00042739,7]
[357333181,1744007500408,-576.65,0.00042739,7]
[357333182,1744007500419,-500.0,0.00042739,7]
[357333183,1744007500429,-604.04388811,0.00042739,7]
[357333184,1744007500439,-181.30015775,0.00042739,7]
[357333185,1744007500449,-500.0,0.00042739,7]
[357333186,1744007500460,-1107.37,0.00042739,7]
[357333187,1744007500471,-1447.2,0.00042739,7]
[357333188,1744007500482,-513.43,0.00042739,7]
[357333189,1744007500495,-446.62461464,0.00042739,7]
[357333190,1744007500506,-566.61,0.00042739,7]
[357333191,1744007500673,-939.19,0.00042739,7]
[357333192,1744007500695,-1423.54,0.00042739,7]
[357333193,1744007500706,-2008.01,0.00042739,7]
[357333194,1744007500716,-1800.94,0.00042739,7]
[357333195,1744007500726,-901.74,0.00042739,7]
[357333196,1744007500736,-500.0,0.00042739,7]
[357333197,1744007500747,-749.66,0.00042739,7]
[357333198,1744007500757,-500.0,0.00042739,7]
[357333199,1744007500767,-500.0,0.00042739,7]
[357333200,1744007500776,-697.53,0.00042739,7]
[357333201,1744007500786,-500.0,0.00042739,7]
[357333202,1744007500800,-934.77,0.00042739,7]
[357333203,1744007500810,-500.0,0.00042739,7]
[357333204,1744007500819,-1984.09,0.00042739,7]
[357333205,1744007500829,-946.46,0.00042739,7]
[357333206,1744007500840,-935.62,0.00042739,7]
[357333207,1744007500850,-500.0,0.00042739,7]
[357333208,1744007500861,-515.1,0.00042739,7]
[357333209,1744007500871,-512.76,0.00042739,7]
[357333210,1744007500882,-690.44,0.00042739,7]
[357333211,1744007500892,-838.21,0.00042739,7]
[357333212,1744007500902,-847.87,0.00042739,7]
[357333213,1744007500912,-1589.02,0.00042739,7]
[357333214,1744007500922,-500.0,0.00042739,7]
[357333215,1744007500932,-500.0,0.00042739,7]
[357333216,1744007500942,-1158.58,0.00042739,7]
[357333217,1744007500951,-952.13,0.00042739,7]
[357333218,1744007500961,-573.45,0.00042739,7]
[357333219,1744007500971,-500.0,0.00042739,7]
[357333220,1744007500981,-1057.47,0.00042739,7]
[357333221,1744007500991,-500.0,0.00042739,7]
[357333222,1744007501001,-694.43,0.00042739,7]
[357333223,1744007501010,-571.11,0.00042739,7]
[357333224,1744007501020,-500.0,0.00042739,7]
[357333225,1744007501030,-528.03,0.00042739,7]
[357333226,1744007501039,-500.0,0.00042739,7]
[357333227,1744007501056,-613.99,0.00042739,7]
[357333228,1744007501066,-1665.49,0.00042739,7]
[357333229,1744007501076,-928.88,0.00042739,7]
[357333230,1744007501085,-772.18,0.00042739,7]
[357333231,1744007501096,-500.0,0.00042739,7]
[357333232,1744007501105,-500.0,0.00042739,7]
[357333233,1744007501115,-500.0,0.00042739,7]
[357333234,1744007501124,-500.0,0.00042739,7]
[357333235,1744007501134,-1501.09,0.00042739,2]
[357333236,1744007501144,-586.05,0.00042739,7]
[357333237,1744007501154,-722.91,0.00042739,7]
[357333238,1744007501165,-1033.34,0.00042739,7]
[357333239,1744007501175,-522.77,0.00042739,7]
[357333240,1744007501184,-500.0,0.00042739,7]
[357333241,1744007501194,-571.83,0.00042739,7]
[357333242,1744007501204,-523.84,0.00042739,7]
[357333243,1744007501213,-500.0,0.00042739,7]
[357333244,1744007501223,-500.0,0.00042739,7]
[357333245,1744007501233,-492.57284784,0.00042739,7]
[357333246,1744007501243,-833.69,0.00042739,7]
[357333247,1744007501253,-2025.36,0.00042739,7]
[357333248,1744007501262,-1592.74,0.00042739,7]
[357333249,1744007501272,-603.67,0.00042739,7]
[357333250,1744007501282,-376.01656484,0.00042739,7]
[357333251,1744007501293,-2054.09,0.00042739,7]
[357333252,1744007501304,-4027.87,0.00042739,7]
[357333253,1744007501313,-1703.64,0.00042739,7]
[357333254,1744007501322,-1206.14,0.00042739,7]
[357333255,1744007501332,-2750.5,0.00042739,7]
[357333256,1744007501343,-5383.4,0.00042739,7]
[357333257,1744007501352,-1044.92,0.00042739,7]
[357333258,1744007501362,-752.29,0.00042739,7]
[357333259,1744007501371,-556.96,0.00042739,7]
[357333260,1744007501381,-16324.2,0.00042739,7]
[357333261,1744007501391,-9467.87,0.00042739,7]
[357333262,1744007501400,-704.24,0.00042739,7]
[357333263,1744007501410,-5668.81,0.00042739,7]
[357333264,1744007501419,-2032.66,0.00042739,7]
[357333265,1744007501429,-7826.43,0.00042739,7]
[357333266,1744007501439,-627.1,0.00042739,7]
[357333267,1744007501448,-1951.0,0.00042739,7]
[357333268,1744007501458,-1564.82,0.00042739,7]
[357333269,1744007501468,-720.69,0.00042739,7]
[357333270,1744007501478,-603.99,0.00042739,7]
[357333271,1744007501487,-500.0,0.00042739,7]
[357333272,1744007501497,-1960.56,0.00042739,7]
[357333273,1744007501506,-1748.88,0.00042739,7]
[357333274,1744007501515,-2029.77,0.00042739,7]
[357333275,1744007501525,-1368.39,0.00042739,2]
[357333276,1744007501534,-588.58,0.00042739,7]
[357333277,1744007501547,-601.11,0.00042739,7]
[357333278,1744007501556,-1802.77,0.00042739,7]
[357333279,1744007501566,-638.37,0.00042739,7]
[357333280,1744007501575,-3642.09,0.00042739,7]
[357333281,1744007501585,-1347.37,0.00042739,7]
[357333282,1744007501594,-1391.95,0.00042739,7]
[357333283,1744007501604,-500.0,0.00042739,7]
[357333284,1744007501613,-2126.62,0.00042739,7]
[357333285,1744007501623,-796.84,0.00042739,7]
[357333286,1744007501632,-617.31,0.00042739,7]
[357333287,1744007501642,-5186.58,0.00042739,7]
[357333288,1744007501651,-1111.1,0.00042739,7]
[357333289,1744007501665,-1058.19,0.00042739,7]
[357333290,1744007501675,-7684.6,0.00042739,7]
[357333291,1744007501684,-781.69,0.00042739,7]
[357333292,1744007501694,-503.58,0.00042739,7]
[357333293,1744007501704,-500.0,0.00042739,7]